bitfinex/quotes_ETHUSD_20250804
["timestamp","ask_amount","ask_price","bid_price","bid_amount"]
[1754331176631,1e-08,3686.8,3686.7,4.38876287]
[1754331176930,1e-08,3687.0,3686.9,3.26230573]
[1754331177149,0.25130024,3688.0,3687.9,2.71157027]
[1754331177356,0.25130024,3688.4,3688.3,2.71127619]
[1754331177529,0.25130024,3688.4,3688.3,7.35197619]
[1754331177730,0.25130024,3688.7,3688.6,2.71105568]
[1754331177971,0.25130024,3688.7,3688.6,6.86805568]
[1754331178145,0.25130024,3688.7,3688.6,4.157]
[1754331178964,0.4718,3688.9,3688.6,4.157]
[1754331179168,3.25130024,3688.9,3688.6,4.157]
[1754331179370,0.4718,3688.8,3688.6,4.157]
[1754331179849,2.71093491,3688.8,3688.6,4.157]
[1754331180031,0.4718,3688.7,3688.6,4.157]
[1754331180377,0.4718,3688.7,3688.5,0.1352]
[1754331180378,2.71105568,3688.6,3688.5,0.1352]
[1754331180666,3.64385568,3688.6,3688.5,4.2912]
[1754331180873,0.9328,3688.6,3688.5,4.2912]
[1754331181171,3.64385568,3688.6,3688.5,0.1352]
[1754331181544,3.64385568,3688.6,3688.5,4.2902]
[1754331181864,3.64385568,3688.6,3688.5,0.1352]
[1754331182171,3.64385568,3688.6,3688.5,4.2902]
[1754331183265,0.4718,3688.6,3688.5,4.2902]
[1754331184547,3.21235568,3688.6,3688.5,4.2902]
[1754331184745,0.5013,3688.6,3688.5,4.2902]
[1754331185045,3.21235568,3688.6,3688.5,4.2902]
[1754331185247,3.67335568,3688.6,3688.5,4.2902]
[1754331185465,0.9623,3688.6,3688.5,4.2902]
[1754331185673,3.67335568,3688.6,3688.5,0.1352]
[1754331185968,3.67335568,3688.6,3688.0,0.4837]
[1754331185969,2.71113123,3688.5,3688.3,0.1352]
[1754331186142,3.37904997,3688.6,3688.5,4.155]
[1754331186332,2.71122381,3688.4,3688.3,4.155]
[1754331186734,3.64402381,3688.4,3688.3,4.155]
[1754331187444,3.64402381,3688.4,3687.9,0.1352]
[1754331187445,0.9328,3688.4,3687.9,0.1352]
[1754331187645,5.71142322,3688.1,3688.0,4.154]
[1754331187875,2.71166202,3687.8,3687.6,0.1352]
[1754331188176,0.4718,3688.0,3687.7,4.154]
[1754331188385,6.17257027,3687.9,3687.7,4.154]
[1754331188679,0.4718,3687.8,3687.7,4.154]
[1754331188860,3.18344379,3687.8,3687.7,4.154]
[1754331189065,4.96194978,3687.8,3687.1,6.516]
[1754331189278,3.64451733,3687.7,3687.3,0.1352]
[1754331189456,2.71180579,3687.6,3687.3,0.1352]
[1754331189775,2.71208505,3687.2,3687.1,6.516]
[1754331189976,2.71208505,3687.2,3687.1,10.67]
[1754331190175,3.18388505,3687.2,3687.1,4.154]
[1754331191055,2.71220486,3687.1,3686.9,0.1352]
[1754331191257,0.4718,3687.1,3687.0,4.154]
[1754331191599,0.4718,3687.1,3686.9,0.1352]
[1754331191895,0.5962,3687.5,3686.7,4.154]
[1754331191896,2.71242755,3686.8,3686.7,4.154]
[1754331192239,3.18422755,3686.8,3686.7,4.154]
[1754331192587,3.18422755,3686.8,3686.5,0.1352]
[1754331192588,2.71252644,3686.6,3686.5,0.1352]
[1754331192941,2.71252644,3686.6,3686.5,4.2892]
[1754331193133,3.0,3686.7,3686.5,4.2892]
[1754331193338,2.71252644,3686.6,3686.5,4.2892]
[1754331193537,3.18432644,3686.6,3685.9,0.4837]
[1754331193747,2.7127225,3686.4,3686.2,0.1352]
[1754331193966,0.4718,3686.5,3686.2,0.1352]
[1754331194309,0.4718,3686.3,3686.2,0.1352]
[1754331195288,0.4718,3686.3,3685.8,0.1352]
[1754331195289,2.71297449,3686.0,3685.8,0.1352]
[1754331195455,0.4718,3685.9,3685.8,4.2892]
[1754331195639,0.9328,3686.2,3685.8,4.2892]
[1754331195839,0.461,3686.2,3685.8,4.2892]
[1754331196040,0.4718,3686.1,3685.8,4.2892]
[1754331196341,0.4718,3686.1,3685.8,4.7729]
[1754331197735,0.468,3686.0,3685.8,4.2892]
[1754331197949,0.468,3685.9,3685.8,4.2892]
[1754331198145,2.71290482,3686.1,3685.8,4.2902]
[1754331198388,1.52617853,3686.0,3685.6,4.155]
[1754331198587,2.71318881,3685.7,3685.6,4.155]
[1754331198887,0.9497,3685.7,3685.6,4.155]
[1754331199185,0.468,3685.7,3685.6,4.155]
[1754331200986,0.1352,3685.9,3685.6,4.648]
[1754331201191,0.38577529,3685.9,3685.7,0.493]
[1754331201391,0.1352,3685.9,3685.7,0.493]
[1754331201565,0.38577529,3685.9,3685.7,0.493]
[1754331201750,0.1352,3685.9,3685.7,0.493]
[1754331202576,0.0293,3685.9,3685.7,0.493]
[1754331202768,0.0293,3685.9,3685.6,4.155]
[1754331202981,0.0293,3685.9,3685.7,0.493]
[1754331203352,0.0293,3685.9,3685.8,3.20611519]
[1754331203552,0.0293,3685.9,3685.8,4.36227293]
[1754331205501,0.0293,3685.9,3685.8,3.34131519]
[1754331207416,0.0293,3685.9,3685.8,3.48431519]
[1754331207721,0.1352,3686.6,3685.8,0.7712]
[1754331207871,0.1352,3686.6,3686.3,2.71271688]
[1754331208074,4.6377,3687.3,3686.3,2.71271688]
[1754331208075,0.25005809,3686.9,3686.4,4.649]
[1754331208377,0.9497,3686.8,3686.4,4.156]
[1754331208690,4.19975809,3686.7,3686.5,4.156]
[1754331208898,0.25005809,3686.6,3686.5,4.156]
[1754331209112,0.71805809,3686.6,3686.5,4.156]
[1754331209503,0.9497,3686.6,3686.5,4.156]
[1754331209699,1.19975809,3686.6,3686.5,4.156]
[1754331210214,1.60449956,3686.6,3686.5,4.156]
[1754331210410,7.317026,3686.6,3686.5,4.156]
[1754331210625,1.60449956,3686.6,3685.3,4.703]
[1754331210828,0.1352,3686.2,3685.6,0.1352]
[1754331211008,3.0,3686.0,3685.7,4.155]
[1754331211182,0.468,3685.9,3685.7,4.155]
[1754331211731,3.4817,3686.0,3685.7,4.155]
[1754331212020,0.468,3685.8,3685.6,0.1352]
[1754331212189,0.468,3685.8,3685.7,4.155]
[1754331212389,0.1352,3686.2,3685.7,4.155]
[1754331212390,0.6032,3686.2,3685.7,4.155]
[1754331212590,0.468,3686.1,3685.7,4.155]
[1754331212799,0.468,3686.1,3685.7,4.648]
[1754331213044,0.468,3686.1,3685.7,4.155]
[1754331213045,3.468,3686.0,3685.7,4.155]
[1754331213223,3.0,3686.0,3685.7,4.155]
[1754331213424,3.0,3686.0,3685.2,2.71354694]
[1754331213425,0.9497,3685.9,3685.0,0.493]
[1754331213686,3.1352,3685.6,3685.1,4.155]
[1754331213971,3.0,3685.3,3685.1,4.155]
[1754331214273,3.0,3685.3,3684.9,0.1352]
[1754331214274,0.468,3685.2,3684.9,0.1352]
[1754331214455,0.51562038,3685.1,3684.6,0.1372]
[1754331214637,0.51562038,3685.1,3684.9,4.155]
[1754331214845,0.9497,3685.0,3684.9,4.155]
[1754331215043,0.468,3685.0,3684.9,4.155]
[1754331215255,3.6032,3685.3,3684.9,4.155]
[1754331215560,0.468,3685.2,3684.9,4.155]
[1754331216144,3.0,3685.5,3685.0,0.493]
[1754331216145,0.1352,3685.5,3685.0,0.493]
[1754331216346,0.1352,3685.5,3684.9,4.2902]
[1754331216534,0.1352,3685.5,3685.1,0.493]
[1754331216739,3.0,3685.2,3684.9,4.155]
[1754331217061,0.468,3685.1,3684.9,4.155]
[1754331217865,0.1352,3685.3,3684.9,6.86871016]
[1754331218031,0.1352,3685.3,3685.0,0.493]
[1754331218366,0.6032,3685.3,3685.0,0.493]
[1754331218522,0.0285,3685.1,3685.0,0.493]
[1754331218723,0.0285,3685.1,3685.0,1.24270017]
[1754331218926,0.0285,3685.1,3685.0,4.23460437]
[1754331219328,0.0285,3685.1,3685.0,4.09160437]
[1754331219556,0.0285,3685.1,3685.0,8.24760437]
[1754331221528,0.0285,3685.1,3685.0,8.39060437]
[1754331222246,0.0285,3685.1,3685.0,8.24760437]
[1754331224564,0.0285,3685.1,3685.0,12.45760437]
[1754331228152,0.4624,3685.1,3685.0,4.3452]
[1754331228360,3.88990132,3685.1,3685.0,4.3452]
[1754331228549,2.7137042,3685.0,3684.9,0.002]
[1754331228755,3.89539626,3685.0,3684.9,4.158]
[1754331228940,2.96397496,3685.0,3684.9,4.158]
[1754331229141,3.86147496,3685.0,3684.9,4.158]
[1754331229370,3.6112042,3685.0,3684.9,4.158]
[1754331229553,3.86282671,3685.0,3684.9,4.158]
[1754331229870,1.14912251,3685.0,3684.9,0.002]
[1754331230043,1.14912251,3685.0,3684.9,4.158]
[1754331230667,1.14911037,3685.0,3684.9,4.158]
[1754331231063,0.68551037,3685.0,3684.9,4.158]
[1754331231236,0.25161037,3685.1,3684.9,4.6087]
[1754331231436,0.25161037,3685.0,3684.9,4.6087]
[1754331231644,0.4339,3685.0,3684.9,0.002]
[1754331231850,0.8975,3685.0,3684.9,4.158]
[1754331232047,1.14911037,3685.0,3684.9,4.158]
[1754331232989,0.68551037,3685.0,3684.9,4.158]
[1754331233162,0.4339,3685.0,3684.9,4.158]
[1754331233363,0.68551037,3685.0,3684.9,4.158]
[1754331233676,0.4619,3685.0,3684.9,4.158]
[1754331234080,0.71351037,3685.0,3684.9,4.158]
[1754331234387,1.17711037,3685.0,3684.9,4.158]
[1754331235181,0.71351037,3685.0,3684.9,4.158]
[1754331238383,0.68551037,3685.0,3684.9,4.158]
[1754331239396,0.68551037,3685.0,3684.9,8.368]
[1754331241501,6.86281457,3685.0,3684.9,0.002]
[1754331241702,7.27772561,3685.0,3684.9,0.002]
[1754331243458,11.43372561,3685.0,3684.9,0.002]
[1754331244471,41.43372561,3685.0,3684.9,0.002]
[1754331246477,41.98372561,3685.0,3684.9,0.002]
[1754331246663,42.01122561,3685.0,3684.9,0.002]
[1754331247307,42.010967,3685.0,3684.9,0.002]
[1754331249106,2.71392514,3684.7,3684.6,0.002]
[1754331249306,43.43386282,3684.7,3684.6,0.002]
[1754331249472,44.29743876,3684.7,3684.6,0.002]
[1754331250432,6.2639988,3684.6,3684.5,0.002]
[1754331250595,37.54805056,3684.6,3684.5,0.002]
[1754331252320,37.65682556,3684.6,3684.5,1e-08]
[1754331252524,2.7141362,3684.5,3684.2,0.002]
[1754331252722,2.7141362,3684.5,3683.6,0.002]
[1754331252723,6.26466188,3683.7,3683.6,0.002]
[1754331252879,10.67201364,3683.7,3683.6,0.002]
[1754331253226,11.56951364,3683.7,3683.6,0.002]
[1754331253372,41.56951364,3683.7,3683.6,0.002]
[1754331253571,39.2446755,3683.7,3683.6,0.002]
[1754331253878,43.4006755,3683.7,3683.6,0.002]
[1754331254075,3.0,3683.7,3683.6,0.4527]
[1754331254804,3.38611491,3683.7,3683.6,0.4527]
[1754331256101,3.25091491,3683.7,3683.6,3.31043558]
[1754331256275,3.25091491,3683.7,3683.6,0.5957]
[1754331257106,3.25091491,3683.7,3683.6,3.31043558]
[1754331257388,3.25091491,3683.7,3683.6,0.4527]
[1754331257730,3.5895264,3683.7,3683.6,0.4713]
[1754331258027,3.25091491,3683.7,3683.6,0.4713]
[1754331258327,3.25091491,3683.7,3683.6,0.6143]
[1754331258526,3.25091491,3683.7,3683.6,0.4713]
[1754331258823,3.25072367,3683.7,3683.6,0.4713]
[1754331259029,3.0,3683.7,3683.6,0.002]
[1754331259227,4.03553526,3683.7,3683.6,0.002]
[1754331259530,3.25074289,3683.7,3683.6,0.4713]
[1754331260089,3.0,3683.7,3683.6,0.4713]
[1754331260302,3.25073568,3683.7,3683.6,0.4713]
[1754331260731,0.1352,3683.8,3683.6,3.18603558]
[1754331260934,4.156,3684.4,3683.8,2.71453843]
[1754331261226,0.4462,3684.8,3683.9,0.4693]
[1754331261227,0.38591087,3684.3,3683.9,0.4693]
[1754331261529,0.1352,3684.3,3683.9,0.4693]
[1754331261698,0.1352,3684.3,3684.0,2.71443558]
[1754331261899,0.1352,3684.3,3684.1,0.4693]
[1754331262222,0.25075864,3684.5,3684.4,2.71414612]
[1754331262423,3.38595864,3684.8,3684.4,0.4693]
[1754331262626,0.25075864,3684.7,3684.4,0.4693]
[1754331262945,0.1352,3684.8,3684.4,0.4693]
[1754331263131,0.38595864,3684.8,3684.4,3.18344011]
[1754331263327,0.1352,3684.8,3684.2,0.1352]
[1754331263502,0.25075864,3684.9,3684.5,0.4693]
[1754331263705,0.25075864,3684.8,3684.6,0.4693]
[1754331263904,0.25075864,3684.8,3684.7,0.4693]
[1754331264608,3.0,3684.7,3684.4,0.6045]
[1754331264805,0.25075864,3684.6,3684.4,0.1352]
[1754331265021,0.25075864,3684.6,3684.1,0.4693]
[1754331265341,0.4462,3684.5,3684.0,0.1352]
[1754331265659,3.16036207,3684.4,3683.7,3.18394383]
[1754331265792,3.0,3684.2,3683.6,0.002]
[1754331266133,3.0,3684.2,3683.7,0.4693]
[1754331266134,0.25075864,3684.1,3683.7,0.4693]
[1754331266445,0.25075864,3684.1,3683.8,0.4693]
[1754331266735,3.0,3684.2,3683.8,0.4693]
[1754331266920,0.25075864,3684.1,3683.7,0.1352]
[1754331267102,0.25075864,3684.1,3683.8,0.4693]
[1754331267620,2.714561,3683.9,3683.6,0.002]
[1754331267794,0.25075864,3683.8,3683.6,0.002]
[1754331267998,3.41160169,3683.8,3683.6,0.002]
[1754331268235,0.2512247,3683.7,3683.6,0.002]
[1754331268434,0.1352,3683.8,3683.6,0.002]
[1754331268594,0.1352,3683.8,3683.7,0.4693]
[1754331269125,0.27588337,3684.1,3683.7,0.4693]
[1754331269325,0.0246,3684.1,3683.8,0.4693]
[1754331269536,3.0,3683.9,3683.8,0.4693]
[1754331269720,3.25128337,3683.9,3683.6,0.002]
[1754331269921,0.25128337,3683.8,3683.6,0.002]
[1754331270091,0.25128337,3683.8,3683.6,0.4713]
[1754331270290,3.4462,3683.9,3683.6,0.4713]
[1754331270536,0.25139726,3683.8,3683.6,0.4713]
[1754331270722,0.25139726,3683.8,3683.7,0.4693]
[1754331272035,3.0,3683.9,3683.7,0.4693]
[1754331272337,0.0246,3684.1,3683.8,0.4693]
[1754331272534,0.0246,3684.1,3683.6,0.002]
[1754331272535,0.25159901,3684.0,3683.9,0.4693]
[1754331272838,0.25159901,3684.1,3683.9,0.4693]
[1754331272991,0.25159901,3684.1,3683.6,0.002]
[1754331273190,3.25159901,3684.1,3683.7,0.4693]
[1754331273393,0.25159901,3684.0,3683.7,0.4693]
[1754331273627,0.25159901,3683.9,3683.7,0.4693]
[1754331273834,0.25159901,3684.1,3683.6,2.71672363]
[1754331274033,0.25159901,3684.0,3683.8,0.4693]
[1754331274333,0.25159901,3683.9,3683.6,2.71672363]
[1754331274530,0.25159901,3684.1,3683.6,2.71672363]
[1754331274731,0.25159901,3684.0,3683.6,2.71672363]
[1754331275030,0.25159901,3683.9,3683.7,0.4693]
[1754331275231,0.25159901,3683.9,3683.6,2.7166906]
[1754331275232,0.25159901,3683.8,3683.6,2.7166906]
[1754331275430,0.25159901,3684.1,3683.6,2.7166906]
[1754331275611,3.25159901,3684.0,3683.6,0.002]
[1754331275801,0.25159901,3683.9,3683.7,0.4693]
[1754331276004,0.25159901,3683.8,3683.7,2.71466188]
[1754331276402,0.25159901,3683.8,3683.6,0.002]
[1754331276403,0.25159901,3683.8,3683.6,2.71670941]
[1754331276749,0.25159901,3683.7,3683.6,2.71670941]
[1754331276930,0.25159901,3684.0,3683.7,2.7146265]
[1754331277243,0.25215398,3683.9,3683.8,2.71458819]
[1754331277528,0.25215398,3683.9,3683.8,3.18388819]
[1754331277733,2.84906952,3684.8,3684.0,2.71444082]
[1754331277909,0.25216402,3684.7,3684.2,2.71428019]
[1754331278096,0.25216402,3684.6,3684.3,0.4693]
[1754331278298,0.25216402,3684.5,3684.4,2.87107751]
[1754331278540,0.25216402,3684.5,3684.4,3.34037751]
[1754331278707,0.25216402,3684.5,3684.4,3.18344612]
[1754331279031,0.25216402,3684.5,3684.4,3.31864612]
[1754331279427,0.25216402,3684.5,3684.4,7.47364612]
[1754331279621,0.25216402,3684.5,3684.4,8.55312069]
[1754331281358,0.25216402,3684.5,3684.4,4.7595]
[1754331281522,0.25216402,3684.5,3684.4,0.1352]
[1754331281727,0.25216402,3684.5,3684.4,4.2902]
[1754331282129,0.4462,3684.7,3684.4,4.2902]
[1754331282430,0.25216402,3684.8,3684.5,3.18336887]
[1754331282631,0.25216402,3685.1,3684.6,0.4693]
[1754331282832,0.25216402,3685.0,3684.7,2.7139194]
[1754331283033,0.25216402,3684.9,3684.8,0.4693]
[1754331283268,0.25216402,3685.1,3684.8,0.4693]
[1754331283562,0.25216402,3685.0,3684.8,4.6243]
[1754331284129,0.25216402,3685.1,3684.8,4.6243]
[1754331284369,0.4462,3685.0,3684.8,4.6243]
[1754331284785,0.4462,3685.0,3684.4,0.1352]
[1754331284786,0.4462,3684.9,3684.4,0.1352]
[1754331285078,4.16276402,3684.9,3684.7,4.155]
[1754331285373,0.69836402,3684.8,3684.7,4.155]
[1754331285666,1.16276402,3684.8,3684.7,4.155]
[1754331286880,1.16056402,3684.8,3684.7,4.155]
[1754331287056,2.71407246,3684.5,3684.4,0.1352]
[1754331287229,2.71407246,3684.5,3683.7,2.71459539]
[1754331287230,2.71419656,3684.4,3684.1,4.155]
[1754331287429,0.4575,3684.3,3684.0,4.155]
[1754331287853,0.4575,3684.2,3684.0,4.155]
[1754331288070,0.4575,3684.1,3683.6,0.002]
[1754331288268,0.4575,3684.1,3683.7,4.2902]
[1754331288485,0.4575,3684.0,3683.7,4.2902]
[1754331288680,0.4575,3684.0,3683.7,4.7543]
[1754331289280,0.4622,3684.0,3683.7,4.2902]
[1754331289474,0.4575,3683.9,3683.7,4.2902]
[1754331289647,0.4575,3683.8,3683.7,4.2902]
[1754331291063,0.70924688,3683.8,3683.7,4.2902]
[1754331291791,0.4575,3683.8,3683.7,4.2902]
[1754331292465,0.70924688,3683.8,3683.7,4.2902]
[1754331292666,0.4575,3683.8,3683.7,4.2902]
[1754331293675,3.63428819,3683.8,3683.6,0.002]
[1754331293893,0.70924688,3683.7,3683.6,0.002]
[1754331294769,3.42390876,3683.7,3683.6,0.002]
[1754331295284,0.70924688,3683.7,3683.6,0.002]
[1754331296686,0.25174688,3683.7,3683.6,0.4661]
[1754331296886,0.1352,3683.9,3683.6,0.4661]
[1754331297085,0.38694688,3683.9,3683.6,0.4661]
[1754331297275,0.4575,3683.8,3683.6,0.002]
[1754331297708,3.4575,3683.7,3683.6,0.002]
[1754331297874,6.88610876,3683.7,3683.6,0.002]
[1754331301696,6.88608891,3683.7,3683.6,0.002]
[1754331302093,7.43608891,3683.7,3683.6,0.002]
[1754331302281,2.71532529,3682.8,3682.7,4.362348]
[1754331302600,3.17282529,3682.8,3682.7,4.227148]
[1754331302804,6.30802529,3682.8,3682.7,4.227148]
[1754331303904,3.38667567,3682.8,3682.7,4.227148]
[1754331304105,5.96680096,3682.8,3682.7,4.227148]
[1754331304309,6.17282529,3682.8,3682.7,4.227148]
[1754331304510,6.42422754,3682.8,3682.7,4.227148]
[1754331304813,5.9667465,3682.8,3682.7,4.227148]
[1754331304989,5.9667465,3682.8,3682.7,4.691248]
[1754331305184,5.71532529,3682.8,3682.7,4.691248]
[1754331305703,0.1352,3683.0,3682.7,4.691248]
[1754331305881,2.71510438,3683.1,3682.8,5.0884248]
[1754331306082,2.71510438,3683.1,3682.8,4.155]
[1754331306283,3.0,3683.4,3683.0,0.1352]
[1754331306513,0.251276,3683.3,3683.0,0.1352]
[1754331306815,0.251276,3683.3,3682.8,4.155]
[1754331306816,2.71518585,3683.0,3682.8,4.155]
[1754331307012,0.251276,3682.9,3682.8,4.6191]
[1754331307181,0.251276,3682.9,3682.8,4.155]
[1754331307373,3.4238597,3683.2,3682.8,4.6191]
[1754331307575,0.251276,3683.1,3682.9,0.4641]
[1754331307779,0.251276,3683.2,3683.0,0.4641]
[1754331308138,0.251276,3683.2,3683.1,4.6191]
[1754331308412,0.1352,3683.3,3683.1,4.6191]
[1754331308612,0.251276,3683.4,3683.1,6.87009934]
[1754331308815,3.0,3683.5,3683.2,0.4641]
[1754331308993,0.251276,3683.4,3683.2,0.4641]
[1754331309194,0.386476,3683.6,3683.2,0.4641]
[1754331309592,0.251276,3683.6,3683.3,0.4641]
[1754331310116,0.251276,3683.6,3683.2,7.06022832]
[1754331310294,2.71480928,3683.5,3683.4,0.4641]
[1754331310491,2.96596328,3683.5,3683.4,0.4641]
[1754331311113,0.251154,3683.5,3683.4,0.4641]
[1754331311290,2.96603229,3683.5,3683.2,4.3452]
[1754331311495,0.251154,3683.4,3683.2,4.3452]
[1754331311697,0.251154,3683.4,3683.2,4.8093]
[1754331312094,3.17245669,3683.3,3683.2,4.21]
[1754331312295,3.42361069,3683.3,3683.2,4.21]
[1754331312525,6.42361069,3683.3,3683.2,4.21]
[1754331313294,3.0,3683.2,3682.9,4.155]
[1754331313616,0.4575,3683.3,3682.9,4.6191]
[1754331313819,0.25135067,3683.3,3683.0,0.4641]
[1754331313986,3.1352,3683.4,3683.0,1.7832448]
[1754331314190,0.25135067,3683.3,3683.1,0.4641]
[1754331314418,0.38655067,3683.4,3683.1,0.4641]
[1754331314726,0.25135067,3683.4,3683.1,0.5993]
[1754331314922,0.25135067,3683.4,3683.3,2.71495669]
[1754331315221,0.0234,3683.6,3683.3,2.71495669]
[1754331315222,0.0234,3683.6,3683.3,0.4641]
[1754331315419,0.4575,3683.5,3683.2,4.155]
[1754331315585,2.71482338,3683.5,3683.2,4.155]
[1754331315783,0.70885067,3683.4,3683.2,4.155]
[1754331316187,3.25165108,3683.4,3683.2,4.155]
[1754331316388,0.70915108,3683.3,3683.2,4.155]
[1754331316586,0.25165108,3683.3,3683.2,4.155]
[1754331316788,6.16675669,3683.3,3683.2,4.155]
[1754331317018,6.41840777,3683.3,3683.2,4.155]
[1754331317416,2.71510412,3683.1,3683.0,4.154]
[1754331317630,2.71510412,3683.1,3682.7,8.437148]
[1754331317631,2.71517863,3683.0,3682.7,8.572348]
[1754331317924,2.71517863,3683.0,3682.8,4.154]
[1754331317925,3.16705156,3682.9,3682.8,4.154]
[1754331318221,0.4518,3682.9,3682.8,4.154]
[1754331319930,0.70368538,3682.9,3682.8,4.154]
[1754331320596,2.85032962,3683.1,3682.8,4.6482]
[1754331320597,0.25188538,3683.0,3682.8,4.6482]
[1754331320934,0.38708538,3683.1,3682.9,0.4942]
[1754331321495,0.25188538,3683.1,3683.0,4.6482]
[1754331321721,0.25188538,3683.3,3683.0,4.6482]
[1754331322019,0.25188538,3683.2,3683.1,0.4942]
[1754331322410,2.96692047,3683.2,3683.0,4.154]
[1754331322610,2.7151906,3683.0,3682.8,4.21]
[1754331322813,0.70368538,3682.9,3682.8,4.21]
[1754331323020,0.70368538,3682.9,3682.7,4.227148]
[1754331323021,5.71532529,3682.8,3682.7,4.227148]
[1754331323228,7.01811067,3682.8,3682.7,4.227148]
[1754331323591,6.55421067,3682.8,3682.7,4.227148]
[1754331323795,3.55421067,3682.8,3682.7,4.227148]
[1754331323990,0.38708538,3682.8,3682.7,4.227148]
[1754331324403,0.38708538,3682.8,3682.7,4.721348]
[1754331324610,0.25188538,3682.8,3682.7,4.856548]
[1754331325564,0.70368538,3682.8,3682.7,4.227148]
[1754331325694,0.70368538,3682.8,3682.7,8.381148]
[1754331326095,0.25188538,3682.9,3682.7,8.381148]
[1754331326497,3.70368538,3682.9,3682.7,8.381148]
[1754331326821,0.70368538,3682.8,3682.7,8.381148]
[1754331327022,0.4518,3682.8,3682.7,8.381148]
[1754331327222,0.25188538,3682.8,3682.7,8.381148]
[1754331327930,3.88291067,3682.8,3682.7,4.227148]
[1754331328236,5.12775723,3682.8,3682.7,4.227148]
[1754331328527,4.66385723,3682.8,3682.7,4.227148]
[1754331328729,4.94853194,3682.8,3682.7,4.227148]
[1754331328931,4.68595723,3682.8,3682.7,4.227148]
[1754331329299,4.97063194,3682.8,3682.7,4.227148]
[1754331329699,7.68595723,3682.8,3682.7,4.227148]
[1754331329922,4.68595723,3682.8,3682.7,4.227148]
[1754331331131,5.14985723,3682.8,3682.7,4.227148]
[1754331331903,12.30385723,3682.8,3682.7,4.227148]
[1754331332718,42.85385723,3682.8,3682.7,4.227148]
[1754331333637,9.12926088,3682.7,3682.6,0.002]
[1754331333840,40.29684626,3682.7,3682.6,0.002]
[1754331334435,6.26562024,3682.4,3682.3,0.002]
[1754331334636,6.26562024,3682.4,3680.4,0.4942]
[1754331334637,0.55,3682.1,3680.4,0.4942]
[1754331334836,0.55,3682.1,3679.3,3.14291125]
[1754331334837,2.71649614,3681.3,3680.6,0.60175616]
[1754331335038,3.0,3681.1,3680.6,0.60175616]
[1754331335538,4.154,3681.0,3680.7,0.4942]
[1754331335743,4.154,3681.0,3680.7,0.6372]
[1754331335915,0.4518,3681.6,3680.7,0.6372]
[1754331336243,13.38601289,3681.1,3680.6,0.10755616]
[1754331336422,5.7168745,3680.7,3680.6,0.10755616]
[1754331336617,10.14550946,3680.7,3680.6,0.10755616]
[1754331336834,10.59730946,3680.7,3680.6,0.10755616]
[1754331337034,11.06120946,3680.7,3680.6,0.10755616]
[1754331337235,12.35951266,3680.7,3680.6,0.10755616]
[1754331340048,10.59630946,3680.7,3680.6,0.10755616]
[1754331340224,6.42030946,3680.7,3680.6,0.10755616]
[1754331340599,0.25163496,3680.7,3680.6,3.31870448]
[1754331340718,0.001,3683.7,3680.6,0.74475616]
[1754331340719,0.25063646,3682.1,3680.6,0.74475616]
[1754331340918,4.44163646,3682.0,3681.5,2.71627747]
[1754331341114,3.25063646,3681.9,3681.4,2.71633537]
[1754331341319,0.25063646,3681.8,3681.6,0.4942]
[1754331341520,3.16749663,3682.3,3681.7,0.4942]
[1754331341521,4.192,3682.2,3681.7,0.4942]
[1754331341720,0.27169949,3682.1,3681.7,0.4942]
[1754331342016,0.27169949,3682.1,3681.8,0.4942]
[1754331342316,0.021,3682.1,3682.0,2.71591526]
[1754331342531,0.021,3682.1,3682.0,4.23612714]
[1754331342735,0.021,3682.1,3682.0,1.52021188]
[1754331342937,0.021,3682.1,3682.0,0.4942]
[1754331343358,3.0,3682.0,3681.6,4.6862]
[1754331343543,0.4518,3681.9,3681.6,0.4942]
[1754331343742,0.4518,3681.9,3681.4,4.192]
[1754331343743,3.021,3682.1,3681.4,4.192]
[1754331344055,3.021,3682.1,3681.7,2.71611365]
[1754331344056,0.021,3682.1,3681.7,2.71611365]
[1754331344262,0.021,3682.1,3681.4,4.192]
[1754331344470,0.021,3682.1,3681.8,0.4942]
[1754331344956,0.021,3682.1,3681.9,0.1352]
[1754331345155,0.021,3682.1,3681.9,0.6294]
[1754331345332,0.021,3682.1,3681.7,0.4942]
[1754331345660,0.021,3682.1,3681.8,2.71602488]
[1754331346163,0.021,3682.1,3682.0,2.71591526]
[1754331346326,0.021,3682.1,3682.0,2.85111526]
[1754331346658,0.021,3682.1,3682.0,3.47441526]
[1754331347032,0.021,3682.1,3682.0,3.33141526]
[1754331347622,0.021,3682.1,3682.0,3.47441526]
[1754331347828,0.021,3682.1,3682.0,4.1910579]
[1754331348524,0.021,3682.1,3682.0,4.0480579]
[1754331349347,0.021,3682.1,3682.0,8.2410579]
[1754331350951,0.021,3682.1,3681.8,3.69401112]
[1754331350952,0.9503,3682.1,3681.8,0.002]
[1754331351158,0.9293,3682.0,3681.8,0.002]
[1754331351528,0.4563,3681.9,3681.8,0.002]
[1754331352130,0.49024986,3681.9,3681.8,0.002]
[1754331352331,0.9293,3681.9,3681.8,0.002]
[1754331352533,0.1562,3682.1,3681.8,0.002]
[1754331353247,3.1562,3682.1,3681.8,0.002]
[1754331353572,0.70757499,3682.0,3681.8,0.002]
[1754331354759,0.4563,3682.0,3681.8,0.002]
[1754331355266,0.4563,3681.9,3681.8,0.002]
[1754331355983,0.25132707,3682.0,3681.8,0.002]
[1754331356183,0.38652707,3682.1,3681.8,0.002]
[1754331356383,0.84282707,3682.1,3681.8,0.002]
[1754331356589,0.4563,3682.0,3681.8,0.002]
[1754331357084,3.9293,3681.9,3681.8,0.002]
[1754331357296,4.18067918,3681.9,3681.8,0.002]